fUST/lending_fUST_20250910
["ID","MTS","AMOUNT","RATE_DAILY","PERIOD"]
[384656582,1757505048869,-1000.0,0.0002484,5]
[384656583,1757505048878,-1000.0,0.0002486,5]
[384656584,1757505048887,-1000.0,0.0002486,5]
[384656585,1757505048896,-168.0,0.00024861,2]
[384656586,1757505048905,-150.0,0.00024873,2]
[384656587,1757505048914,-1000.0,0.0002488,5]
[384656588,1757505048923,-1000.0,0.0002488,5]
[384656589,1757505048933,-254.358146,0.000249,2]
[384656590,1757505048942,-91803.63,0.000249,7]
[384656591,1757505048951,-151.0,0.000249,7]
[384656592,1757505048960,-1000.0,0.000249,5]
[384656593,1757505048970,-1000.0,0.000249,5]
[384656594,1757505048979,-151.0,0.000249,7]
[384656595,1757505048989,-304057.04594359,0.000249,2]
[384656596,1757505049062,-552.47360005,0.000249,2]
[384656597,1757505049073,-284.94200996,0.000249,2]
[384656598,1757505049116,200.20205649,0.00013498,2]
[384656599,1757505049182,-200.20205649,0.00015399,2]
[384656601,1757505049191,-819.51892371,0.000249,2]
[384656602,1757505049202,-1889.67924,0.000249,2]
[384656603,1757505049216,-410.425,0.000249,2]
[384656604,1757505049230,-1103.9980002,0.000249,2]
[384656605,1757505112196,150.0,0.00016438,2]
[384656606,1757505126713,520.0,0.00016438,3]
[384656607,1757505126965,520.0,0.00016438,3]
[384656608,1757505127313,520.0,0.00016438,3]
[384656609,1757505127588,520.0,0.00016438,3]
[384656610,1757505127860,485.30819344,0.00016438,3]
[384656612,1757505158618,210.2546,0.00027397,120]
[384656613,1757505166786,7284.70180656,0.00013398,2]
[384656614,1757505166808,10000.01,0.00013398,2]
[384656615,1757505166830,10000.01,0.00013398,2]
[384656616,1757505166851,10000.01,0.00013398,2]
[384656617,1757505166872,10000.01,0.00013398,2]
[384656618,1757505166894,10000.01,0.00013398,2]
[384656619,1757505166915,10000.01,0.00013398,2]
[384656620,1757505166936,10000.01,0.00013398,2]
[384656621,1757505166957,10000.01,0.00013398,2]
[384656622,1757505166978,10000.01,0.00013398,2]
[384656623,1757505166999,10000.01,0.00013398,2]
[384656624,1757505167021,10000.01,0.00013398,2]
[384656625,1757505167042,10000.01,0.00013398,2]
[384656626,1757505167063,10000.01,0.00013398,2]
[384656627,1757505167085,10000.01,0.00013398,2]
[384656628,1757505167111,222715.15819344,0.00013398,2]
[384656629,1757505183205,480.0,0.00013698,2]
[384656651,1757505319325,36554.96522298,0.0002739,120]
[384656658,1757505397308,4353.0454387,0.000145,9]
[384656659,1757505408088,972.76537,0.0002739,120]
[384656661,1757505413484,-184.11073457,0.00013561,2]
[384656663,1757505451821,480.0,0.00013561,2]
[384656666,1757505460622,480.0,0.00013561,2]
[384656667,1757505476756,480.0,0.00013561,2]
[384656670,1757505485926,235.88926543,0.00013561,2]
[384656672,1757505501818,240.0,0.00013561,2]
[384656687,1757505902009,664.11073457,0.00013561,2]
[384656689,1757505925353,664.11073457,0.00013561,2]
[384656690,1757505950529,184.11073457,0.00013561,2]
[384656691,1757505958543,184.11073457,0.00013561,2]
[384656692,1757505975916,184.11073457,0.00013561,2]
[384656693,1757505985071,184.11073457,0.00013561,2]
[384656694,1757506000891,184.11073457,0.00013561,2]
[384656695,1757506009689,184.11073457,0.00013561,2]
[384656696,1757506025614,346.193178,0.00013562,2]
[384656697,1757506034722,346.193178,0.00013562,2]
[384656698,1757506051079,173.25314915,0.00013562,2]
[384656699,1757506059777,346.193178,0.00013562,2]
[384656701,1757506082872,346.193178,0.00013562,2]
[384656702,1757506106679,275.42680801,0.00013562,2]
[384656705,1757506166866,480.0,0.00013698,2]
[384656707,1757506177350,157.69095,0.00027397,120]
[384656709,1757506188245,506.8797394,0.00013698,2]
[384656741,1757506231954,-346.193178,0.00013699,2]
[384656743,1757506231964,-184.052472,0.00016556,2]
[384656744,1757506231974,-856.1456662,0.00019051,2]
[384656745,1757506231984,-1200.0,0.00019524,2]
[384656747,1757506231994,-217.67150996,0.00019525,2]
[384656749,1757506232006,-233.08191698,0.00019525,2]
[384656751,1757506232016,-203.30414021,0.00019525,2]
[384656754,1757506232028,-846.88337432,0.00019525,2]
[384656757,1757506232038,-1200.0,0.00019895,2]
[384656759,1757506232049,-300.0,0.00019899,2]
[384656762,1757506232061,-300.0,0.00019899,2]
[384656764,1757506232071,-300.0,0.00019899,2]
[384656765,1757506232081,-300.0,0.00019899,2]
[384656767,1757506232091,-300.0,0.00019899,2]
[384656770,1757506232101,-8219.23414715,0.000199,2]
[384656772,1757506232112,-346.193178,0.00020187,2]
[384656775,1757506232123,-481.8718385,0.00020296,2]
[384656778,1757506232133,-184.11073457,0.00020296,2]
[384656781,1757506232143,-480.0,0.00020296,2]
[384656784,1757506232152,-480.0,0.00020296,2]
[384656787,1757506232162,-480.0,0.00020296,2]
[384656790,1757506232172,-480.0,0.00020296,2]
[384656792,1757506232182,-305.01823303,0.00020296,2]
[384656794,1757506232192,-480.0,0.00020296,2]
[384656796,1757506232202,-480.0,0.00020296,2]
[384656798,1757506232211,-480.0,0.00020296,2]
[384656800,1757506232221,-480.0,0.00020296,2]
[384656802,1757506232230,-480.0,0.00020296,2]
[384656804,1757506232241,-480.0,0.00020296,2]
[384656806,1757506232251,-480.0,0.00020296,2]
[384656807,1757506232261,-480.0,0.00020296,2]
[384656810,1757506232274,-480.0,0.00020296,2]
[384656812,1757506232284,-480.0,0.00020296,2]
[384656814,1757506232293,-300.0,0.00020297,20]
[384656815,1757506232303,-300.0,0.00020297,20]
[384656817,1757506232314,-300.0,0.00020297,20]
[384656819,1757506232327,-300.0,0.00020297,20]
[384656821,1757506232337,-300.0,0.00020297,20]
[384656823,1757506232349,-300.0,0.00020297,20]
[384656825,1757506232360,-300.0,0.00020297,20]
[384656826,1757506232370,-300.0,0.00020297,20]
[384656827,1757506232381,-300.0,0.00020297,20]
[384656828,1757506232391,-300.0,0.00020297,20]
[384656829,1757506232402,-300.0,0.00020297,20]
[384656830,1757506232413,-300.0,0.00020297,20]
[384656831,1757506232424,-300.0,0.00020297,20]
[384656832,1757506232434,-300.0,0.00020297,20]
[384656833,1757506232444,-300.0,0.00020297,20]
[384656834,1757506232454,-480.0,0.00020327,2]
[384656835,1757506232464,-480.0,0.00020327,2]
[384656836,1757506232474,-8219.23414689,0.00020327,2]
[384656837,1757506232484,-500.0,0.0002056,2]
[384656838,1757506232494,-500.0,0.0002056,2]
[384656839,1757506232503,-500.0,0.0002056,2]
[384656840,1757506232513,-501.75686912,0.0002056,2]
[384656841,1757506232523,-500.0,0.0002056,2]
[384656842,1757506232532,-480.0,0.0002057,2]
[384656843,1757506232542,-480.0,0.0002057,2]
[384656844,1757506232552,-480.0,0.0002057,2]
[384656845,1757506232562,-480.0,0.0002057,2]
[384656846,1757506232572,-480.0,0.0002057,2]
[384656847,1757506232582,-480.0,0.0002057,2]
[384656848,1757506232592,-480.0,0.00020601,2]
[384656849,1757506232601,-600.0,0.00020702,20]
[384656850,1757506232611,-8219.23414689,0.00020755,2]
[384656851,1757506232621,-480.0,0.00020844,2]
[384656852,1757506232631,-480.0,0.00020844,2]
[384656853,1757506232641,-480.0,0.00020875,2]
[384656854,1757506232652,-1223.22247108,0.0002091,2]
[384656855,1757506232662,-3000.0,0.00021,2]
[384656857,1757506232824,-3000.0,0.0002101,2]
[384656858,1757506232836,-3000.0,0.0002102,2]
[384656859,1757506232845,-3000.0,0.0002103,2]
[384656860,1757506232855,-3000.0,0.0002104,2]
[384656861,1757506232864,-3000.0,0.0002105,2]
[384656862,1757506232873,-3000.0,0.0002106,2]
[384656863,1757506232883,-3000.0,0.0002107,2]
[384656864,1757506232893,-3000.0,0.0002108,2]
[384656866,1757506232902,-3000.0,0.0002109,2]
[384656867,1757506232911,-20252.09,0.000211,10]
[384656868,1757506232921,-24302.5,0.0002111,10]
[384656869,1757506232931,-480.0,0.00021118,2]
[384656870,1757506232940,-29163.0,0.0002112,10]
[384656871,1757506232949,-184.052472,0.00021122,2]
[384656872,1757506232958,-202.20607097,0.0002113,2]
[384656873,1757506232968,-500.0,0.0002113,2]
[384656874,1757506232977,-500.0,0.0002113,2]
[384656875,1757506232986,-500.0,0.0002113,2]
[384656876,1757506232995,-500.0,0.0002113,2]
[384656877,1757506233004,-500.0,0.0002113,2]
[384656878,1757506233013,-500.0,0.0002113,2]
[384656879,1757506233023,-500.0,0.0002113,2]
[384656880,1757506233032,-228.69249048,0.0002113,2]
[384656881,1757506233042,-500.0,0.0002113,2]
[384656882,1757506233051,-581.4278612,0.0002113,2]
[384656883,1757506233060,-500.0,0.0002113,2]
[384656884,1757506233070,-500.0,0.0002113,2]
[384656885,1757506233079,-500.0,0.0002113,2]
[384656886,1757506233089,-500.0,0.0002113,2]
[384656887,1757506233098,-500.0,0.0002113,2]
[384656888,1757506233108,-500.0,0.0002113,2]
[384656889,1757506233117,-500.0,0.0002113,2]
[384656890,1757506233126,-500.0,0.0002113,2]
[384656891,1757506233135,-500.0,0.0002113,2]
[384656892,1757506233145,-500.0,0.0002113,2]
[384656893,1757506233155,-500.0,0.0002113,2]
[384656894,1757506233164,-500.0,0.0002113,2]
[384656895,1757506233174,-500.0,0.0002113,2]
[384656896,1757506233184,-500.0,0.0002113,2]
[384656897,1757506233193,-500.0,0.0002113,2]
[384656898,1757506233203,-500.0,0.0002113,2]
[384656899,1757506233212,-500.0,0.0002113,2]
[384656900,1757506233222,-500.0,0.0002113,2]
[384656901,1757506233232,-473.13217776,0.0002113,2]
[384656902,1757506233242,-370.92363628,0.0002113,2]
[384656903,1757506233253,-500.0,0.0002113,2]
[384656904,1757506233265,-500.0,0.0002113,2]
[384656905,1757506233279,-500.0,0.0002113,2]
[384656906,1757506233288,-500.0,0.0002113,2]
[384656907,1757506233297,-500.0,0.0002113,2]
[384656908,1757506233307,-500.0,0.0002113,2]
[384656909,1757506233317,-500.0,0.0002113,2]
[384656910,1757506233327,-500.0,0.0002113,2]
[384656911,1757506233337,-500.0,0.0002113,2]
[384656912,1757506233346,-500.0,0.0002113,2]
[384656913,1757506233356,-500.0,0.0002113,2]
[384656914,1757506233366,-500.0,0.0002113,2]
[384656915,1757506233375,-500.0,0.0002113,2]
[384656916,1757506233385,-500.0,0.0002113,2]
[384656917,1757506233395,-500.0,0.0002113,2]
[384656918,1757506233404,-456.00081173,0.0002113,2]
[384656919,1757506233419,-43.99918827,0.0002113,2]
[384656920,1757506233428,-500.0,0.0002113,2]
[384656921,1757506233438,-245.04442827,0.0002113,2]
[384656922,1757506233448,-500.0,0.0002113,2]
[384656923,1757506233457,-500.0,0.0002113,2]
[384656924,1757506233466,-500.0,0.0002113,2]
[384656925,1757506233475,-500.0,0.0002113,2]
[384656926,1757506233484,-500.0,0.0002113,2]
[384656927,1757506233494,-500.0,0.0002113,2]
[384656928,1757506233503,-500.0,0.0002113,2]
[384656929,1757506233513,-500.0,0.0002113,2]
[384656930,1757506233522,-500.0,0.0002113,2]
[384656931,1757506233531,-500.0,0.0002113,2]
[384656932,1757506233540,-274.79246419,0.0002113,2]
[384656933,1757506233550,-441.44420219,0.0002113,2]
[384656934,1757506233560,-239.53867222,0.0002113,2]
[384656935,1757506233569,-203.30414021,0.00021131,10]
[384656936,1757506233579,-160.0,0.00021162,10]
[384656937,1757506233588,-8219.23414689,0.00021182,2]
[384656938,1757506233598,-1200.0,0.00021372,2]
[384656939,1757506233607,-480.0,0.00021392,2]
[384656940,1757506233616,-1223.22247106,0.00021455,2]
[384656941,1757506233626,-1460.48065343,0.00021566,2]
[384656942,1757506233636,-704.54,0.000216,3]
[384656943,1757506233646,-8219.23414689,0.0002161,2]
[384656944,1757506233656,-180.0,0.00021666,2]
[384656945,1757506233666,-480.0,0.00021666,2]
[384656946,1757506233677,-301.0,0.0002167,2]
[384656947,1757506233687,-420.0,0.0002167,2]
[384656948,1757506233697,-303.0,0.0002167,2]
[384656949,1757506233706,-2300.0,0.00021712,2]
[384656950,1757506233716,-480.0,0.0002194,2]
[384656951,1757506233725,-5106.54,0.00022,7]
[384656952,1757506233735,-399.92,0.00022,2]
[384656953,1757506233744,-8219.23414689,0.00022037,2]
[384656954,1757506233754,-234.83,0.0002209,3]
[384656955,1757506233764,-18947.46637851,0.000221,7]
[384656956,1757506233776,-3800.0,0.000221,7]
[384656958,1757506237843,-480.0,0.00020296,2]
[384656960,1757506237854,-480.0,0.00020296,2]
[384656961,1757506237864,-480.0,0.00020296,2]
[384656962,1757506237874,-480.0,0.00020327,2]
[384656963,1757506237884,-140.35663519,0.0002057,2]
[384656964,1757506237963,-339.64336481,0.0002057,2]
[384656966,1757506237973,-480.0,0.0002057,2]
[384656968,1757506237983,-480.0,0.0002057,2]
[384656969,1757506237992,-480.0,0.00020601,2]
[384656970,1757506238001,-480.0,0.00020844,2]
[384656971,1757506238010,-480.0,0.00020844,2]
[384656972,1757506238020,-480.0,0.00020844,2]
[384656973,1757506238029,-480.0,0.00020875,2]
[384656974,1757506238038,-3552.21108291,0.0002109,10]
[384656975,1757506238049,-1013.77155782,0.0002109,10]
[384656976,1757506238061,-12310.75735927,0.0002109,10]
[384656977,1757506238070,-480.0,0.00021118,2]
[384656978,1757506238080,-13.08026537,0.00021392,2]
[384656979,1757506238091,-466.91973463,0.00021392,2]
[384656980,1757506238101,-480.0,0.00021666,2]
[384656981,1757506238111,-480.0,0.0002194,2]
[384656982,1757506238120,-1223.22247106,0.00022,2]
[384656983,1757506238129,-1681.52590882,0.000221,7]
[384657021,1757506240122,-39833.54771267,0.000221,7]
[384657022,1757506240131,-4304.77,0.000221,7]
[384657023,1757506240141,-203.30414021,0.000221,7]
[384657024,1757506240150,-480.0,0.00022214,2]
[384657025,1757506240159,-480.0,0.00022214,2]
[384657026,1757506240167,-1460.48065339,0.0002235,2]
[384657027,1757506240177,-707.46501329,0.00022464,2]
[384657028,1757506240191,-3377.50955113,0.00022464,2]
[384657029,1757506241404,409.0,0.00019085,2]
[384657037,1757506243123,-409.0,0.00022085,2]
[384657038,1757506243132,-262.34,0.00022464,2]
[384657039,1757506243178,-3871.91958247,0.00022464,2]
[384657040,1757506243188,-480.0,0.00022488,2]
[384657041,1757506243197,-480.0,0.00022488,2]
[384657042,1757506243207,-153.526621,0.00022529,2]
[384657043,1757506243216,-480.0,0.00022762,2]
[384657044,1757506243225,-480.0,0.00022762,2]
[384657045,1757506243235,-720.0,0.00022772,20]
[384657046,1757506243245,-2300.0,0.00022808,2]
[384657047,1757506243255,-399.92,0.00022827,2]
[384657048,1757506243269,-8219.23414689,0.00022892,2]
[384657049,1757506243281,-154.383,0.00022892,2]
[384657050,1757506243291,-480.0,0.00023036,2]
[384657051,1757506243301,-480.0,0.00023036,2]
[384657052,1757506243311,-1460.48065339,0.00023133,2]
[384657053,1757506243321,-480.0,0.0002331,2]
[384657054,1757506243331,-480.0,0.0002331,2]
[384657055,1757506243340,-8219.23414689,0.00023319,2]
[384657056,1757506243351,-255.29288463,0.0002336,2]
[384657057,1757506243362,-469.66,0.0002346,3]
[384657058,1757506243371,-480.0,0.00023584,2]
[384657059,1757506243381,-480.0,0.00023584,2]
[384657060,1757506243390,-587.0,0.00023599,2]
[384657061,1757506243400,-399.92,0.00023654,2]
[384657062,1757506243410,-1000.0,0.00023671,5]
[384657063,1757506243420,-153.526621,0.00023739,20]
[384657064,1757506243431,-8219.23414689,0.00023747,2]
[384657065,1757506243440,-480.0,0.00023858,2]
[384657066,1757506243450,-480.0,0.00023858,2]
[384657067,1757506243459,-2300.0,0.00023904,2]
[384657068,1757506243469,-1460.48065339,0.00023917,2]
[384657069,1757506243478,-14063.95,0.0002399,10]
[384657070,1757506243488,-4304.77,0.00024,7]
[384657071,1757506243498,-160.0,0.00024,10]
[384657072,1757506243507,-233.08191698,0.00024,7]
[384657073,1757506243517,-233.08191698,0.00024,10]
[384657074,1757506243526,-846.88337432,0.00024,7]
[384657075,1757506243536,-846.88337432,0.00024,10]
[384657076,1757506243545,-217.67150996,0.00024,7]
[384657077,1757506243556,-217.67150996,0.00024,10]
[384657078,1757506243565,-166.13741892,0.00024132,2]
[384657079,1757506243575,-480.0,0.00024132,2]
[384657080,1757506243585,-8219.23414689,0.00024174,2]
[384657081,1757506243594,-5106.54,0.000242,7]
[384657082,1757506243604,-151.0,0.00024222,5]
[384657083,1757506243613,-153.526621,0.00024358,20]
[384657084,1757506243623,-480.0,0.00024406,2]
[384657085,1757506243633,-153.526621,0.00024412,3]
[384657086,1757506243642,-399.92,0.00024481,2]
[384657087,1757506243652,-5556.1982932,0.000245,7]
[384657088,1757506244318,480.0,0.00020327,2]
[384657089,1757506244563,480.0,0.00020601,2]
[384657090,1757506244814,480.0,0.00020875,2]
[384657091,1757506244857,-58706.3417068,0.000245,7]
[384657092,1757506244866,-233.08191698,0.000245,7]
[384657093,1757506244876,-846.88337432,0.000245,7]
[384657094,1757506244885,-203.30414021,0.000245,7]
[384657095,1757506244894,-217.67150996,0.000245,7]
[384657096,1757506244904,-8219.23414689,0.00024602,2]
[384657097,1757506244914,-380.0,0.00024658,2]
[384657099,1757506244923,-200.0,0.00024658,15]
[384657100,1757506244932,-700.0,0.00024658,2]
[384657101,1757506244943,-480.0,0.0002468,2]
[384657102,1757506244953,-1460.48065339,0.000247,2]
[384657103,1757506244963,-249364.36785099,0.0002478,2]
[384657104,1757506244973,-1913.664856,0.0002478,5]
[384657105,1757506244983,-2000.0,0.000248,2]
[384657106,1757506244993,-2000.0,0.000248,2]
[384657107,1757506245002,-1000.0,0.000248,5]
[384657108,1757506245012,-4548.17706093,0.000248,2]
[384657109,1757506245021,-28363.63745265,0.000248,3]
[384657110,1757506245031,-1000.79784,0.000248,2]
[384657111,1757506245041,-168.0,0.000248,2]
[384657112,1757506245050,-1000.0,0.0002482,5]
[384657113,1757506245059,-1000.0,0.0002484,5]
[384657114,1757506245067,-1000.0,0.0002486,5]
[384657115,1757506245076,-500.0,0.00024873,2]
[384657116,1757506245085,-500.0,0.00024873,2]
[384657117,1757506245095,-500.0,0.00024873,2]
[384657118,1757506245105,-500.0,0.00024873,2]
[384657119,1757506245114,-500.0,0.00024873,2]
[384657120,1757506245124,-500.0,0.00024873,2]
[384657121,1757506245133,-500.0,0.00024873,2]
[384657122,1757506245142,-500.0,0.00024873,2]
[384657123,1757506245151,-500.0,0.00024873,2]
[384657124,1757506245161,-500.0,0.00024873,2]
[384657125,1757506245170,-500.0,0.00024873,2]
[384657126,1757506245180,-500.0,0.00024873,2]
[384657127,1757506245190,-500.0,0.00024873,2]
[384657128,1757506245199,-500.0,0.00024873,2]
[384657129,1757506245209,-500.0,0.00024873,2]
[384657130,1757506245219,-500.0,0.00024873,2]
[384657131,1757506245229,-500.0,0.00024873,2]
[384657132,1757506245238,-500.0,0.00024873,2]
[384657133,1757506245247,-521.01237101,0.00024873,2]
[384657134,1757506245256,-500.0,0.00024873,2]
[384657136,1757506245375,-500.0,0.00024873,2]
[384657137,1757506245386,-500.0,0.00024873,2]
[384657139,1757506245396,-500.0,0.00024873,2]
[384657140,1757506245406,-500.0,0.00024873,2]
[384657141,1757506245415,-500.0,0.00024873,2]
[384657142,1757506245424,-500.0,0.00024873,2]
[384657143,1757506245434,-500.0,0.00024873,2]
[384657144,1757506245443,-500.0,0.00024873,2]
[384657145,1757506245453,-500.0,0.00024873,2]
[384657146,1757506245463,-500.0,0.00024873,2]
[384657147,1757506245472,-500.0,0.00024873,2]
[384657148,1757506245482,-500.0,0.00024873,2]
[384657150,1757506245491,-262.86426669,0.00024873,2]
[384657152,1757506245501,-500.0,0.00024873,2]
[384657153,1757506245510,-500.0,0.00024873,2]
[384657154,1757506245519,-500.0,0.00024873,2]
[384657155,1757506245528,-500.0,0.00024873,2]
[384657156,1757506245538,-500.0,0.00024873,2]
[384657157,1757506245547,-500.0,0.00024873,2]
[384657158,1757506245556,-585.91552228,0.00024873,2]
[384657159,1757506245566,-500.0,0.00024873,2]
[384657160,1757506245576,-500.0,0.00024873,2]
[384657162,1757506245585,-1643.5973551,0.00024875,2]
[384657164,1757506245596,-1000.0,0.0002488,5]
[384657165,1757506245606,-153.526621,0.0002489,2]
[384657166,1757506245615,-1000.0,0.000249,5]
[384657167,1757506245625,-137568.16490165,0.000249,2]
[384657168,1757506245637,-2722.40192163,0.000249,2]
[384657169,1757506245649,-434.92,0.000249,2]
[384657170,1757506245660,-3356.55289026,0.000249,2]
[384657171,1757506245675,-43305.9150424,0.000249,2]
[384657172,1757506245714,480.0,0.00021149,2]
[384657173,1757506245746,480.0,0.00021423,2]
[384657174,1757506245785,575.23,0.00021696,2]
[384657175,1757506245890,480.0,0.00020296,2]
[384657177,1757506246022,-878.16,0.000249,2]
[384657178,1757506246076,-3116.2930655,0.000249,2]
[384657179,1757506246127,480.0,0.0002057,2]
[384657180,1757506247066,480.0,0.00020844,2]
[384657181,1757506247107,480.0,0.00021118,2]
[384657182,1757506247152,480.0,0.00021392,2]
[384657183,1757506247343,459.34,0.00021666,2]
[384657184,1757506248210,398.8,0.00021915,3]
[384657185,1757506248512,398.8,0.00021144,2]
[384657186,1757506248638,530.87637315,0.000211,10]
[384657187,1757506248812,398.8,0.00020372,2]
[384657188,1757506249119,398.8,0.00019601,2]
[384657189,1757506249425,398.8,0.0001883,2]
[384657190,1757506249872,398.8,0.00018059,2]
[384657191,1757506250008,398.8,0.00017287,2]
[384657192,1757506250315,398.8,0.00016516,2]
[384657193,1757506250596,444.16362685,0.0002112,10]
[384657194,1757506250620,86.7127463,0.0002112,10]
[384657195,1757506250749,480.0,0.00020296,2]
[384657196,1757506251328,480.0,0.0002057,2]
[384657197,1757506251579,480.0,0.00020844,2]
[384657198,1757506251830,480.0,0.00021118,2]
[384657199,1757506252058,200.0,0.00022,2]
[384657200,1757506252084,310.65322788,0.00021392,2]
[384657201,1757506252220,160.0,0.00019051,2]
[384657202,1757506253825,480.0,0.00020296,2]
[384657203,1757506254485,480.0,0.0002057,2]
[384657204,1757506254658,6362.64402582,0.0002057,2]
[384657205,1757506254680,4218.40635807,0.0002057,2]
[384657206,1757506254779,480.0,0.00020844,2]
[384657207,1757506255044,480.0,0.00021118,2]
[384657208,1757506256915,542.11,0.00022,2]
[384657209,1757506257296,358.74361005,0.00021079,2]
[384657210,1757506257973,480.0,0.00020296,2]
[384657211,1757506258223,480.0,0.0002057,2]
[384657212,1757506258561,480.0,0.00020844,2]
[384657213,1757506258707,417.15472785,0.00019051,2]
[384657214,1757506258834,480.0,0.00021118,2]
[384657215,1757506260500,480.0,0.00020296,2]
[384657221,1757506471635,266.0,0.00027397,120]
[384657224,1757506489495,204.08087185,0.00013328,2]
[384657225,1757506512991,204.08087185,0.00013328,2]
[384657226,1757506523984,-204.08087185,0.00013463,2]
[384657227,1757506524011,-204.08087185,0.00013599,2]
[384657228,1757506524039,-170.83236,0.00018,2]
[384657229,1757506524066,-160.0,0.00018755,2]
[384657230,1757506524092,-530.87637315,0.00018829,2]
[384657231,1757506524119,-160.0,0.00018829,2]
[384657232,1757506524147,-417.15472785,0.0001893,2]
[384657233,1757506524174,-160.0,0.00019177,2]
[384657234,1757506524201,-160.0,0.00019177,2]
[384657235,1757506524227,-160.0,0.00019258,2]
[384657236,1757506524253,-160.0,0.00019263,2]
[384657237,1757506524279,-2436.61839696,0.00019312,2]
[384657238,1757506524429,-1200.0,0.00019313,2]
[384657239,1757506524455,-300.0,0.00019314,2]
[384657240,1757506524482,-300.0,0.00019314,2]
[384657241,1757506524509,-300.0,0.00019314,2]
[384657242,1757506524536,-300.0,0.00019314,2]
[384657243,1757506524562,-233.08191698,0.00019315,2]
[384657244,1757506524590,-203.30414021,0.00019315,2]
[384657245,1757506524618,-846.88337432,0.00019315,2]
[384657246,1757506524646,-183.51227797,0.0001942,2]
[384657247,1757506524907,-2900.0,0.0001952,2]
[384657248,1757506525538,-217.67150996,0.00019263,2]
[384657249,1757506525910,-6827.66041896,0.000199,2]
[384657250,1757506525927,-4095.3211494,0.000199,2]
[384657251,1757506525937,-542.54806133,0.00020196,2]
[384657252,1757506525946,-500.0,0.00020273,2]
[384657253,1757506525955,-500.0,0.00020273,2]
[384657254,1757506525965,-500.0,0.00020273,2]
[384657255,1757506525974,-500.0,0.00020273,2]
[384657256,1757506525983,-500.0,0.00020273,2]
[384657257,1757506525992,-331.12,0.00020286,3]
[384657258,1757506526001,-322.1,0.00020286,3]
[384657259,1757506526010,-480.0,0.00020293,2]
[384657260,1757506526019,-480.0,0.00020293,2]
[384657261,1757506526028,-480.0,0.00020293,2]
[384657262,1757506526037,-480.0,0.00020294,2]
[384657263,1757506526046,-288.92078927,0.00020294,2]
[384657264,1757506526085,-192.45456303,0.00020294,2]
[384657265,1757506526112,-480.0,0.00020294,2]
[384657266,1757506526139,-1200.0,0.00020295,2]
[384657267,1757506526168,-480.0,0.00020295,2]
[384657268,1757506526195,-500.0,0.00020295,2]
[384657269,1757506526222,-480.0,0.00020295,2]
[384657270,1757506526250,-480.0,0.00020295,2]
[384657271,1757506526278,-480.0,0.00020295,2]
[384657272,1757506526306,-480.0,0.00020295,2]
[384657273,1757506526419,-480.0,0.00020295,2]
[384657274,1757506526428,-480.0,0.00020295,2]
[384657275,1757506526437,-480.0,0.00020295,2]
[384657276,1757506526446,-480.0,0.00020295,2]
[384657277,1757506526455,-481.47963594,0.00020295,2]
[384657278,1757506526464,-480.0,0.00020295,2]